bitfinex-derivatives/quotes_BTCF0:USTF0_20250629
["timestamp","ask_amount","ask_price","bid_price","bid_amount"]
[1751240177684,1.68928229,108420.0,108410.0,0.002]
[1751240181497,1.48698317,108420.0,108410.0,0.002]
[1751240182198,1.68928229,108420.0,108410.0,0.002]
[1751240183499,0.34984972,108420.0,108410.0,0.002]
[1751240183689,0.34984972,108420.0,108410.0,0.0978]
[1751240183894,0.34984972,108420.0,108410.0,0.1463]
[1751240184495,0.1475506,108420.0,108410.0,0.1463]
[1751240184688,0.34984972,108420.0,108410.0,0.1463]
[1751240185797,0.39614972,108420.0,108410.0,0.1463]
[1751240186090,1.11510972,108420.0,108410.0,0.0978]
[1751240186293,1.16220972,108420.0,108410.0,0.0978]
[1751240187208,0.9599106,108420.0,108410.0,0.0978]
[1751240187496,0.1475506,108420.0,108410.0,0.80845212]
[1751240187701,0.1475506,108420.0,108410.0,0.85335212]
[1751240188404,0.1475506,108420.0,108410.0,0.8688071]
[1751240191002,0.1475506,108420.0,108410.0,0.89638827]
[1751240196708,0.33277152,108430.0,108420.0,0.1475394]
[1751240197008,0.33240088,108430.0,108420.0,1.38427852]
[1751240198008,0.53557518,108430.0,108420.0,1.3841537]
[1751240198907,0.29651688,108430.0,108420.0,1.3841537]
[1751240199108,0.49869118,108430.0,108420.0,1.3841537]
[1751240199308,0.38722126,108430.0,108420.0,1.586328]
[1751240200201,0.38722126,108430.0,108420.0,1.1819794]
[1751240200505,0.38722126,108430.0,108420.0,1.586328]
[1751240200902,0.38722126,108430.0,108420.0,1.3841537]
[1751240201507,0.1485359,108430.0,108420.0,1.586328]
[1751240204412,0.001,108430.0,108420.0,1.586328]
[1751240204613,0.1485258,108430.0,108420.0,1.586328]
[1751240205015,0.3507001,108430.0,108420.0,1.586328]
[1751240205215,0.3507001,108430.0,108420.0,1.65071257]
[1751240206913,0.1485258,108430.0,108420.0,1.65071257]
[1751240208819,0.1485258,108430.0,108420.0,1.61390917]
[1751240211914,0.1475061,108450.0,108440.0,0.1475122]
[1751240212220,0.2699424,108460.0,108450.0,0.1474986]
[1751240212420,0.5179167,108460.0,108450.0,0.7570729]
[1751240213425,0.720091,108460.0,108450.0,0.4074]
[1751240213613,0.720091,108460.0,108450.0,0.3608]
[1751240214019,0.730091,108460.0,108450.0,0.3608]
[1751240214323,0.730091,108460.0,108450.0,0.5082986]
[1751240214518,0.730091,108460.0,108450.0,0.3608]
[1751240214724,0.1474986,108450.0,108440.0,1.50040419]
[1751240214924,0.45700037,108450.0,108440.0,1.50040419]
[1751240216625,0.46300037,108450.0,108440.0,1.50040419]
[1751240218824,0.46300037,108450.0,108440.0,1.46352679]
[1751240219024,0.46300037,108450.0,108440.0,1.33185169]
[1751240219225,0.51050037,108450.0,108440.0,1.33185169]
[1751240219525,0.51050037,108450.0,108440.0,1.12967739]
[1751240219719,0.51050037,108450.0,108440.0,0.60543059]
[1751240220023,0.51050037,108450.0,108440.0,1.15659858]
[1751240220218,0.51050037,108450.0,108440.0,1.30411068]
[1751240220813,0.51050037,108450.0,108440.0,1.15659858]
[1751240221225,0.51050037,108450.0,108440.0,0.57791858]
[1751240221425,0.1475121,108440.0,108430.0,0.38831201]
[1751240221626,0.6462607,108440.0,108430.0,0.3608]
[1751240222621,0.6472607,108440.0,108430.0,0.3608]
[1751240222925,0.1475257,108430.0,108420.0,0.3608]
[1751240223124,0.6944743,108430.0,108420.0,0.3608]
[1751240223328,0.8337143,108430.0,108420.0,0.3608]
[1751240223718,0.70423718,108430.0,108420.0,0.3608]
[1751240227934,0.1475393,108420.0,108410.0,1.16680809]
[1751240228135,0.44628517,108420.0,108410.0,1.49034925]
[1751240229131,0.44628517,108420.0,108410.0,1.49134925]
[1751240229332,0.44628517,108420.0,108410.0,1.49234925]
[1751240230033,0.44628517,108420.0,108410.0,0.91374925]
[1751240230235,0.44628517,108420.0,108410.0,1.49230925]
[1751240232026,0.44628517,108420.0,108410.0,1.53970925]
[1751240234037,0.44628517,108420.0,108410.0,1.39215635]
[1751240237835,0.44628517,108420.0,108410.0,1.53970925]
[1751240238638,0.44628517,108420.0,108410.0,1.53950925]
[1751240239737,0.44628517,108420.0,108410.0,1.58690925]
[1751240240636,0.44628517,108420.0,108410.0,1.43935635]
[1751240240840,0.44628517,108420.0,108410.0,1.41184434]
[1751240242437,0.44628517,108420.0,108410.0,1.41180434]
[1751240242640,0.44628517,108420.0,108410.0,0.69020434]
[1751240243740,0.64857544,108420.0,108410.0,0.69020434]
[1751240244840,0.64857544,108420.0,108410.0,0.11188434]
[1751240248144,0.94977984,108420.0,108410.0,0.01708434]
[1751240249544,0.74751177,108420.0,108410.0,0.01708434]
[1751240250045,1.32567177,108420.0,108410.0,0.01708434]
[1751240255947,0.74751177,108420.0,108410.0,0.01708434]
[1751240256143,0.78749544,108420.0,108410.0,0.06528434]
[1751240256447,0.78749544,108420.0,108410.0,0.11058434]
[1751240256847,0.78749544,108420.0,108410.0,0.0502]
[1751240257042,0.78749544,108420.0,108410.0,0.002]
[1751240258448,1.14829544,108420.0,108410.0,0.002]
[1751240259748,1.14833966,108420.0,108410.0,0.002]
[1751240263746,0.7437593,108420.0,108410.0,0.002]
[1751240264052,1.14833966,108420.0,108410.0,0.002]
[1751240264351,1.52384948,108420.0,108410.0,0.002]
[1751240265750,1.16304948,108420.0,108410.0,0.002]
[1751240266347,1.16300948,108420.0,108410.0,0.002]
[1751240268454,0.44632948,108420.0,108410.0,0.002]
[1751240268654,1.16300948,108420.0,108410.0,0.002]
[1751240273455,1.36529966,108420.0,108410.0,0.002]
[1751240277354,1.42056103,108420.0,108410.0,0.002]
[1751240277554,1.78136103,108420.0,108410.0,0.002]
[1751240281959,1.78136335,108420.0,108410.0,0.002]
[1751240284861,0.1475529,108410.0,108400.0,0.47386724]
[1751240285061,0.64573558,108410.0,108400.0,0.38886384]
[1751240285363,0.69343558,108410.0,108400.0,0.38886384]
[1751240286267,0.49114424,108410.0,108400.0,0.39086384]
[1751240286567,0.69343558,108410.0,108400.0,0.39086384]
[1751240286865,0.49114424,108410.0,108400.0,0.39386384]
[1751240287066,0.44344424,108410.0,108400.0,0.39386384]
[1751240287266,1.15916424,108410.0,108400.0,0.39386384]
[1751240287462,1.15916424,108410.0,108400.0,0.44156384]
[1751240287862,0.44344424,108410.0,108400.0,0.44156384]
[1751240288068,1.02060424,108410.0,108400.0,0.44156384]
[1751240288257,1.02060424,108410.0,108400.0,0.48926384]
[1751240288458,0.34984424,108410.0,108400.0,0.48926384]
[1751240288764,0.34984424,108410.0,108400.0,0.46175183]
[1751240289269,0.34984424,108410.0,108400.0,0.48932632]
[1751240290372,0.39664424,108410.0,108400.0,0.48932632]
[1751240292175,0.39664424,108410.0,108400.0,0.44162632]
[1751240292370,0.64523558,108410.0,108400.0,0.44162632]
[1751240293176,0.2406529,108410.0,108400.0,0.39392632]
[1751240293375,0.44294424,108410.0,108400.0,0.39392632]
[1751240293977,0.78371558,108410.0,108400.0,0.39392632]
[1751240294980,0.64523558,108410.0,108400.0,0.39392632]
[1751240295381,0.78371558,108410.0,108400.0,0.39392632]
[1751240295584,0.64523558,108410.0,108400.0,0.39392632]
[1751240295884,0.78371558,108410.0,108400.0,0.39392632]
[1751240296185,0.64523558,108410.0,108400.0,0.39392632]
[1751240296386,0.78371558,108410.0,108400.0,0.39392632]
[1751240297586,0.64523558,108410.0,108400.0,0.39392632]
[1751240297788,1.36063558,108410.0,108400.0,0.39392632]
[1751240298786,1.36063558,108410.0,108400.0,0.03312632]
[1751240299186,1.72143558,108410.0,108400.0,0.03312632]
[1751240299386,0.1475665,108400.0,108390.0,0.38837449]
[1751240299583,0.89534052,108400.0,108390.0,0.38837449]
[1751240299888,0.99693808,108400.0,108390.0,0.38837449]
[1751240300487,0.99693808,108400.0,108390.0,0.3638]
[1751240301082,0.79464674,108400.0,108390.0,0.3638]
[1751240301482,0.79464674,108400.0,108390.0,0.3658]
[1751240301883,0.59243491,108400.0,108390.0,0.3658]
[1751240308092,0.95323491,108400.0,108390.0,0.005]
[1751240312189,0.1475665,108400.0,108390.0,0.58360355]
[1751240312389,0.1475665,108400.0,108390.0,0.67820355]
[1751240312587,0.1475665,108400.0,108390.0,0.82578365]
[1751240312988,0.1475665,108400.0,108390.0,0.6234128]
[1751240313395,0.1475665,108400.0,108390.0,0.65098729]
[1751240313700,0.1475665,108400.0,108390.0,0.6234128]
[1751240314001,0.1475665,108400.0,108390.0,0.65098729]
[1751240314900,0.1475665,108400.0,108390.0,0.6234128]
[1751240316702,0.1475665,108400.0,108390.0,0.4758327]
[1751240317402,0.1475665,108400.0,108390.0,0.50340719]
[1751240320105,0.1475665,108400.0,108390.0,0.4758327]
[1751240320106,0.34993735,108400.0,108390.0,0.4758327]
[1751240321507,0.34993735,108400.0,108390.0,0.6234129]
[1751240323005,0.1475665,108400.0,108390.0,0.6234129]
[1751240323200,0.1475665,108400.0,108390.0,1.42955824]
[1751240324106,0.1475665,108400.0,108390.0,1.22718739]
[1751240324507,0.1475665,108400.0,108390.0,1.22718719]
[1751240324700,0.1475665,108400.0,108390.0,1.26395317]
[1751240324901,0.1475665,108400.0,108390.0,1.23637868]
[1751240327303,0.34993735,108400.0,108390.0,1.08879868]
[1751240327502,0.34993735,108400.0,108390.0,1.23637868]
[1751240328708,0.1475665,108400.0,108390.0,1.23637868]
[1751240328915,0.34993735,108400.0,108390.0,1.23637868]
[1751240329402,0.34993735,108400.0,108390.0,1.26392225]
[1751240330307,0.34993735,108400.0,108390.0,1.23637868]
[1751240330504,0.1475665,108400.0,108390.0,1.23637868]
[1751240330710,0.1475665,108400.0,108390.0,1.43874953]
[1751240330906,0.1475665,108400.0,108390.0,1.49389851]
[1751240331108,0.1475665,108400.0,108390.0,1.29152766]
[1751240331408,0.1475665,108400.0,108390.0,1.23637868]
[1751240334412,0.1475665,108400.0,108390.0,1.29152766]
[1751240341910,0.34985237,108400.0,108390.0,1.49381353]
[1751240346316,0.1475665,108400.0,108390.0,1.49381353]
[1751240346519,0.34985237,108400.0,108390.0,1.53721353]
[1751240348317,0.39215237,108400.0,108390.0,1.53721353]
[1751240351618,0.39215237,108400.0,108390.0,1.89801353]
[1751240353424,0.39215237,108400.0,108390.0,1.86124755]
[1751240353724,0.39215237,108400.0,108390.0,1.84284423]
[1751240357228,0.39215237,108400.0,108390.0,1.64055836]
[1751240357430,0.39215237,108400.0,108390.0,1.84284423]
[1751240359032,0.1898665,108400.0,108390.0,1.84284423]
[1751240359332,0.39215237,108400.0,108390.0,1.84284423]
[1751240360832,0.39215237,108400.0,108390.0,1.89799321]
[1751240361131,0.39215237,108400.0,108390.0,1.89801098]
[1751240365138,0.39215237,108400.0,108390.0,1.69572511]
[1751240365338,0.39215237,108400.0,108390.0,1.89801098]
[1751240369436,0.39215237,108400.0,108390.0,1.69572511]
[1751240369637,0.39215237,108400.0,108390.0,1.89801098]
[1751240371242,0.39215237,108400.0,108390.0,1.86124755]
[1751240375046,0.39215237,108400.0,108390.0,1.85940755]
[1751240379249,0.39215237,108400.0,108390.0,1.28504755]
[1751240379444,0.39215237,108400.0,108390.0,1.85924755]
[1751240379644,0.59443824,108400.0,108390.0,0.79718168]
[1751240379843,0.63403824,108400.0,108390.0,1.55573014]
[1751240380147,0.67333824,108400.0,108390.0,1.55573014]
[1751240381051,0.67333824,108400.0,108390.0,1.75801601]
[1751240381648,0.67333824,108400.0,108390.0,1.79691601]
[1751240382548,0.67333824,108400.0,108390.0,1.59463014]
[1751240383050,0.63403824,108400.0,108390.0,1.59463014]
[1751240384645,0.63403824,108400.0,108390.0,1.23383014]
[1751240385645,0.63403824,108400.0,108390.0,1.43611601]
[1751240386143,0.2294665,108400.0,108390.0,1.43611601]
[1751240386452,0.63403824,108400.0,108390.0,1.43611601]
[1751240386652,0.63403824,108400.0,108390.0,1.38096703]
[1751240386849,0.63403824,108400.0,108390.0,1.43611601]
[1751240387754,0.2294665,108400.0,108390.0,1.43611601]
[1751240387953,0.63403824,108400.0,108390.0,1.43611601]
[1751240389851,0.63403824,108400.0,108390.0,1.46961601]
[1751240390554,0.63403824,108400.0,108390.0,1.26733014]
[1751240390756,0.63403824,108400.0,108390.0,1.46961601]
[1751240392164,0.63403824,108400.0,108390.0,0.89545601]
[1751240392456,0.63403824,108400.0,108390.0,1.46917601]
[1751240397063,0.2294665,108400.0,108390.0,1.26689014]
[1751240397365,0.63403824,108400.0,108390.0,1.26689014]
[1751240400961,0.63403824,108400.0,108390.0,1.46917601]
[1751240402066,0.43175237,108400.0,108390.0,1.46917601]
[1751240403167,0.43175237,108400.0,108390.0,1.41402703]
[1751240403469,0.63403824,108400.0,108390.0,1.41402703]
[1751240403667,0.2294665,108400.0,108390.0,1.41402703]
[1751240403867,0.43175237,108400.0,108390.0,1.41402703]
[1751240405968,0.63403824,108400.0,108390.0,1.41402703]
[1751240406158,0.2294665,108400.0,108390.0,1.41402703]
[1751240406363,0.43175237,108400.0,108390.0,1.44642703]
[1751240407069,0.1475665,108400.0,108390.0,1.44642703]
[1751240407269,0.34985237,108400.0,108390.0,1.44642703]
[1751240408570,0.34985237,108400.0,108390.0,1.86237601]
[1751240409971,0.34985237,108400.0,108390.0,1.82556765]
[1751240410367,0.20228587,108400.0,108390.0,1.82556765]
[1751240410668,0.31353779,108430.0,108420.0,0.1475393]
[1751240410873,0.28991646,108430.0,108420.0,1.55040757]
[1751240411170,0.28991646,108430.0,108420.0,1.37983511]
[1751240411367,0.18404806,108430.0,108420.0,1.41383511]
[1751240411672,0.147536,108430.0,108420.0,1.65290757]
[1751240412263,0.30973039,108440.0,108430.0,0.1475256]
[1751240412469,0.001,108440.0,108430.0,0.80410141]
[1751240412670,0.001,108440.0,108430.0,0.977248]
[1751240412864,0.001,108440.0,108430.0,1.20712381]
[1751240413472,0.2533404,108460.0,108450.0,0.1474985]
[1751240413667,0.2533404,108460.0,108450.0,1.28358437]
[1751240413668,0.2212404,108460.0,108450.0,1.28358437]
[1751240413868,0.23277138,108460.0,108450.0,1.34948437]
[1751240414167,0.23277138,108460.0,108450.0,1.1471985]
[1751240414373,0.43505725,108460.0,108450.0,1.34948437]
[1751240414868,0.23277138,108460.0,108450.0,1.34948437]
[1751240415069,0.1474928,108460.0,108450.0,1.48584437]
[1751240415778,0.1564928,108460.0,108450.0,1.48559581]
[1751240416168,0.1604928,108460.0,108450.0,1.48559581]
[1751240423180,0.1604928,108460.0,108450.0,1.84639581]
[1751240423677,0.013,108460.0,108450.0,2.04843312]
[1751240423879,0.1604849,108460.0,108450.0,1.84639581]
[1751240424383,0.36252221,108460.0,108450.0,1.5075585]
[1751240424577,0.1932849,108460.0,108450.0,1.70959581]
[1751240426374,0.1604849,108460.0,108450.0,1.70959581]
[1751240427878,0.1604849,108460.0,108450.0,1.13703581]
[1751240428082,0.1604849,108460.0,108450.0,1.84531581]
[1751240430080,0.1604849,108460.0,108450.0,0.9349985]
[1751240430384,0.1604849,108460.0,108450.0,1.84523581]
[1751240430985,0.39432221,108460.0,108450.0,1.6091585]
[1751240431184,0.42762221,108460.0,108450.0,0.9009985]
[1751240431489,0.1474985,108450.0,108440.0,0.37584831]
[1751240431791,0.64857312,108450.0,108440.0,0.37584831]
[1751240431983,0.64857312,108450.0,108440.0,0.94816831]
[1751240432289,0.64857312,108450.0,108440.0,1.09564041]
[1751240432589,0.64857312,108450.0,108440.0,0.94812831]
[1751240432986,0.65657312,108450.0,108440.0,0.94812831]
[1751240433480,0.45453581,108450.0,108440.0,0.94812831]
[1751240433684,0.45453581,108450.0,108440.0,1.09564041]
[1751240433886,0.45453581,108450.0,108440.0,0.94812831]
[1751240434189,0.45453581,108450.0,108440.0,1.09564041]
[1751240435187,0.46053581,108450.0,108440.0,1.09564041]
[1751240436789,0.46053581,108450.0,108440.0,0.94812831]
[1751240437788,0.46053581,108450.0,108440.0,1.09564041]
[1751240438087,0.42863581,108450.0,108440.0,1.12312388]
[1751240438288,0.42863581,108450.0,108440.0,1.09564041]
[1751240439689,0.2265985,108450.0,108440.0,1.09564041]
[1751240439886,0.42863581,108450.0,108440.0,1.09564041]
[1751240441191,0.42863581,108450.0,108440.0,1.12312388]
[1751240442694,0.2265985,108450.0,108440.0,1.12312388]
[1751240442995,0.014,108450.0,108440.0,1.32516119]
[1751240443295,0.1614985,108450.0,108440.0,1.39166119]
[1751240445692,0.1614985,108450.0,108440.0,1.18962388]
[1751240445894,0.1935985,108450.0,108440.0,1.39166119]
[1751240446592,0.1935985,108450.0,108440.0,1.18962388]
[1751240449003,0.05635069,108470.0,108460.0,0.1474849]
[1751240449304,0.001,108470.0,108460.0,1.77900221]
[1751240449498,0.1484713,108470.0,108460.0,0.96952953]
[1751240449703,0.1484713,108470.0,108460.0,1.87940684]
[1751240449905,0.1484713,108470.0,108460.0,1.90688921]
[1751240450099,0.01,108470.0,108460.0,1.90688249]
[1751240450602,0.1564712,108470.0,108460.0,1.90688249]
[1751240452108,0.1564712,108470.0,108460.0,1.93978249]
[1751240453008,0.1564712,108470.0,108460.0,1.73774518]
[1751240453308,0.1564712,108470.0,108460.0,1.93966249]
[1751240454011,0.1564712,108470.0,108460.0,1.23194249]
[1751240454208,0.1564712,108470.0,108460.0,1.93966249]
[1751240454707,0.009,108470.0,108460.0,1.93966249]
[1751240456112,0.009,108470.0,108460.0,1.90301786]
[1751240456714,0.009,108470.0,108460.0,1.54221786]
[1751240457718,0.35850861,108470.0,108460.0,0.38827565]
[1751240457915,0.45530861,108470.0,108460.0,0.96003565]
[1751240458517,0.45530861,108470.0,108460.0,0.38827565]
[1751240458715,0.45530861,108470.0,108460.0,0.96003565]
[1751240461022,0.2532713,108470.0,108460.0,0.93256]
[1751240461222,0.45530861,108470.0,108460.0,0.3608]
[1751240461412,0.45530861,108470.0,108460.0,0.93252]
[1751240461720,0.45530861,108470.0,108460.0,1.0800048]
[1751240461920,0.2532713,108470.0,108460.0,1.0800048]
[1751240463616,0.45530861,108470.0,108460.0,1.0800048]
[1751240469027,0.45530861,108470.0,108460.0,0.3608]
[1751240469230,0.45530861,108470.0,108460.0,0.9324]
[1751240470129,0.45530861,108470.0,108460.0,0.95987565]
[1751240473233,0.45530861,108470.0,108460.0,1.10736045]
[1751240473827,0.45530861,108470.0,108460.0,0.95987565]
[1751240474028,0.45530861,108470.0,108460.0,0.38827565]
[1751240474339,0.45530861,108470.0,108460.0,0.60243565]
[1751240474632,0.1474849,108460.0,108450.0,0.99984028]
[1751240474831,0.2116849,108460.0,108450.0,0.96319565]
[1751240475032,0.41372221,108460.0,108450.0,0.38827565]
[1751240475428,0.41372221,108460.0,108450.0,0.96319565]
[1751240475735,0.41572221,108460.0,108450.0,0.96319565]
[1751240475935,0.41572221,108460.0,108450.0,0.96307565]
[1751240476136,0.41572221,108460.0,108450.0,0.99972028]
[1751240478433,0.41572221,108460.0,108450.0,0.96307565]
[1751240479738,0.41572221,108460.0,108450.0,0.38827565]
[1751240479939,0.41572221,108460.0,108450.0,0.96247565]
[1751240480233,0.41572221,108460.0,108450.0,0.38827565]
[1751240480439,0.41572221,108460.0,108450.0,0.96235565]
[1751240487043,0.2136849,108460.0,108450.0,0.96235565]
[1751240487244,0.38392221,108460.0,108450.0,0.60155565]
[1751240487442,0.41662221,108460.0,108450.0,0.60155565]
[1751240487834,0.41662221,108460.0,108450.0,0.02747565]
[1751240488038,0.55298221,108460.0,108450.0,0.02747565]
[1751240489741,0.1474984,108450.0,108440.0,1.01317087]
[1751240489941,0.44673571,108450.0,108440.0,1.01317087]
[1751240491042,0.002,108460.0,108450.0,0.1474984]
[1751240491243,0.1484724,108470.0,108460.0,0.1474848]
[1751240491546,0.1484724,108470.0,108460.0,0.79146605]
[1751240491845,0.001,108470.0,108460.0,0.85446605]
[1751240492038,0.001,108470.0,108460.0,0.79033228]
[1751240492438,0.005,108470.0,108460.0,0.79033228]
[1751240492647,0.005,108470.0,108460.0,0.81782142]
[1751240492847,0.005,108470.0,108460.0,0.88215679]
[1751240494037,0.1524712,108470.0,108460.0,0.88215679]
[1751240494243,0.005,108470.0,108460.0,0.68011948]
[1751240494442,0.005,108470.0,108460.0,0.88215679]
[1751240496249,0.1524712,108470.0,108460.0,0.88215679]
[1751240500460,0.1524712,108470.0,108460.0,0.89299638]
[1751240500754,0.1524712,108470.0,108460.0,1.45539679]
[1751240501455,0.1524712,108470.0,108460.0,1.3342596]
[1751240501657,0.1524712,108470.0,108460.0,1.3341396]
[1751240501856,0.1524712,108470.0,108460.0,1.53617691]
[1751240502356,0.1524712,108470.0,108460.0,1.56362708]
[1751240503059,0.1524712,108470.0,108460.0,0.85442708]
[1751240503259,0.1524712,108470.0,108460.0,1.56382708]
[1751240503760,0.1524712,108470.0,108460.0,0.85442708]
[1751240503966,0.35450851,108470.0,108460.0,0.47260497]
[1751240504169,0.41890851,108470.0,108460.0,0.44190497]
[1751240504467,0.41890851,108470.0,108460.0,0.61722034]
[1751240504858,0.41890851,108470.0,108460.0,0.04446034]
[1751240505064,0.85330051,108470.0,108460.0,0.04446034]
[1751240505262,1.06881619,108470.0,108460.0,0.01701017]
[1751240507567,0.1474984,108450.0,108440.0,0.4248948]
[1751240507766,0.34953571,108450.0,108440.0,0.9978148]
[1751240507964,0.41273571,108450.0,108440.0,0.9978148]
[1751240508166,0.41273571,108450.0,108440.0,0.96117017]
[1751240508667,0.41273571,108450.0,108440.0,0.96217017]
[1751240509061,0.61477302,108450.0,108440.0,0.38925017]
[1751240509567,0.61477302,108450.0,108440.0,0.96193017]
[1751240509762,0.61477302,108450.0,108440.0,0.38925017]
[1751240509961,0.61477302,108450.0,108440.0,0.001]
[1751240510368,0.2106984,108450.0,108440.0,0.001]
[1751240510667,0.41273571,108450.0,108440.0,0.001]
[1751240514572,0.61477302,108450.0,108440.0,0.001]
[1751240516272,0.7827784,108450.0,108440.0,0.001]
[1751240516473,1.18685302,108450.0,108440.0,0.001]
[1751240517674,1.54765302,108450.0,108440.0,0.001]
[1751240518472,1.72534683,108450.0,108420.0,0.38825017]
[1751240518679,1.72534683,108450.0,108420.0,0.3608]
[1751240518680,0.34956301,108430.0,108420.0,0.3608]
[1751240518977,0.1475393,108420.0,108410.0,0.40365628]
[1751240519176,0.1475393,108420.0,108410.0,0.40328564]
[1751240519177,0.58083661,108420.0,108410.0,0.40328564]
[1751240519776,0.59182533,108420.0,108410.0,0.40328564]
[1751240520170,0.59182533,108420.0,108410.0,0.37583547]
[1751240521175,0.66461644,108420.0,108410.0,0.37783547]
[1751240522676,0.45626533,108420.0,108410.0,0.37783547]
[1751240523677,0.45626533,108420.0,108410.0,0.37883547]
[1751240525872,0.53123383,108420.0,108410.0,0.37883547]
[1751240526771,0.32919652,108420.0,108410.0,0.37883547]
[1751240526971,0.53123383,108420.0,108410.0,0.37883547]
[1751240530176,0.73327114,108420.0,108410.0,0.3638]
[1751240530381,0.73327114,108420.0,108410.0,0.003]
[1751240530577,1.27855114,108420.0,108410.0,0.003]
[1751240530783,0.1475528,108410.0,108400.0,0.00092247]
[1751240530984,0.1475801,108390.0,108380.0,0.50148648]
[1751240531178,0.34961741,108390.0,108380.0,0.47403631]
[1751240531383,0.38271741,108390.0,108380.0,0.11323631]
[1751240531682,0.38271741,108390.0,108380.0,0.08013631]
[1751240532582,0.38271741,108390.0,108380.0,0.08413631]
[1751240532983,0.38271741,108390.0,108380.0,0.08513631]
[1751240534788,0.34961741,108390.0,108380.0,0.62462991]
[1751240535285,0.34961741,108390.0,108380.0,0.11623631]
[1751240535485,0.1475801,108390.0,108380.0,0.47703631]
[1751240535686,0.1475801,108390.0,108380.0,0.62462991]
[1751240536080,0.1475801,108390.0,108380.0,0.47703631]
[1751240537288,0.34961741,108390.0,108380.0,0.47703631]
[1751240537586,0.38221741,108390.0,108380.0,0.47703631]
[1751240537783,0.1801801,108390.0,108380.0,0.62462991]
[1751240537983,0.38221741,108390.0,108380.0,0.62462991]
[1751240540189,0.1801801,108390.0,108380.0,0.62462991]
[1751240540385,0.1475801,108390.0,108380.0,0.82666722]
[1751240544795,0.1475801,108390.0,108380.0,0.67907362]
[1751240546197,0.1475801,108390.0,108380.0,0.70652379]
[1751240546893,0.1475801,108390.0,108380.0,0.50448648]
[1751240547393,0.1475801,108390.0,108380.0,0.65208018]
[1751240547598,0.34961741,108390.0,108380.0,0.50448648]
[1751240547798,0.34961741,108390.0,108380.0,0.65208018]
[1751240548199,0.34961741,108390.0,108380.0,0.43948648]
[1751240548399,0.34961741,108390.0,108380.0,1.01188648]
[1751240548595,0.44591741,108390.0,108380.0,1.01188648]
[1751240552201,0.44591741,108390.0,108380.0,1.04853111]
[1751240555604,0.44591741,108390.0,108380.0,1.19612481]
[1751240556506,0.44591741,108390.0,108380.0,1.04853111]
[1751240557907,0.44591741,108390.0,108380.0,1.08143111]
[1751240558207,0.44591741,108390.0,108380.0,1.05398094]
[1751240558405,0.2438801,108390.0,108380.0,1.20157464]
[1751240558705,0.44591741,108390.0,108380.0,1.20157464]
[1751240559106,0.44591741,108390.0,108380.0,1.05398094]
[1751240559307,0.44591741,108390.0,108380.0,1.10916082]
[1751240559808,0.44591741,108390.0,108380.0,1.25675442]
[1751240560111,0.44591741,108390.0,108380.0,1.10916082]
[1751240562309,0.44591741,108390.0,108380.0,1.25675442]
[1751240563515,0.44591741,108390.0,108380.0,1.10916082]
[1751240567413,0.44591741,108390.0,108380.0,1.07626082]
[1751240572116,0.44591741,108390.0,108380.0,1.04488082]
[1751240572504,0.44591741,108390.0,108380.0,0.47276082]
[1751240574515,0.44591741,108390.0,108380.0,0.41758094]
[1751240575016,0.64795472,108390.0,108380.0,0.41758094]
[1751240575311,0.78359472,108390.0,108380.0,0.06922849]
[1751240575512,1.14439472,108390.0,108380.0,0.03258386]
[1751240576610,1.14439472,108390.0,108380.0,0.005]
[1751240576811,1.14439472,108390.0,108380.0,0.004]
[1751240577014,1.19974541,108390.0,108380.0,0.004]
[1751240577217,1.14439472,108390.0,108380.0,0.004]
[1751240577418,0.1475936,108380.0,108370.0,0.02850658]
[1751240577618,0.41223091,108380.0,108370.0,0.02850658]
[1751240578519,0.41223091,108380.0,108370.0,0.02950658]
[1751240578714,0.41223091,108380.0,108370.0,0.03250658]
[1751240581017,1.52965491,108380.0,108370.0,0.01926031]
[1751240581220,1.62906973,108380.0,108370.0,0.01926031]
[1751240581518,1.62906973,108380.0,108370.0,0.00492272]
[1751240582119,1.62906973,108380.0,108370.0,0.00292272]
[1751240582718,1.44452573,108380.0,108370.0,0.00192272]
[1751240583917,1.24248842,108380.0,108370.0,0.00192272]
[1751240584120,0.9178336,108380.0,108370.0,0.00192272]
[1751240584328,1.11987091,108380.0,108370.0,0.03232272]
[1751240584519,1.11987091,108380.0,108370.0,0.00192272]
[1751240596829,0.9178336,108380.0,108370.0,0.00192272]
[1751240597028,1.11987091,108380.0,108370.0,0.00192272]
[1751240603329,0.41223091,108380.0,108370.0,0.00192272]
[1751240603628,1.11975091,108380.0,108370.0,0.00192272]
[1751240604032,0.41223091,108380.0,108370.0,0.00192272]
[1751240604333,1.11975091,108380.0,108370.0,0.02950658]
[1751240605933,0.9177136,108380.0,108370.0,0.02950658]
[1751240606133,1.11975091,108380.0,108370.0,0.02950658]
[1751240613750,1.32252982,108380.0,108370.0,0.02950658]
[1751240615654,0.2101936,108380.0,108370.0,0.02950658]
[1751240615955,1.32224982,108380.0,108370.0,0.02950658]
[1751240637779,1.32224982,108380.0,108370.0,0.06615121]
[1751240638875,1.32224982,108380.0,108370.0,0.02950658]
[1751240643580,0.61500982,108380.0,108370.0,0.02950658]
[1751240643783,1.32156982,108380.0,108370.0,0.02950658]
[1751240644281,0.61500982,108380.0,108370.0,0.02950658]
[1751240644479,1.32156982,108380.0,108370.0,0.06615121]
[1751240644780,2.82156982,108380.0,108370.0,0.06615121]
[1751240647477,0.38020171,108380.0,108370.0,0.59271469]
[1751240647672,0.38020171,108380.0,108370.0,0.65671469]
[1751240647980,0.58260982,108380.0,108370.0,0.48720658]
[1751240648381,0.1777936,108380.0,108370.0,0.48720658]
[1751240648581,0.38020171,108380.0,108370.0,0.48720658]
[1751240648782,0.58260982,108380.0,108370.0,0.48720658]
[1751240650781,0.58260982,108380.0,108370.0,0.68961469]
[1751240653986,0.58260982,108380.0,108370.0,0.72625932]
[1751240654987,0.58260982,108380.0,108370.0,0.52385121]
[1751240656890,0.58260982,108380.0,108370.0,0.72625932]
[1751240659392,0.58260982,108380.0,108370.0,0.52385121]
[1751240661888,0.61290982,108380.0,108370.0,0.49095121]
[1751240662093,0.64310982,108380.0,108370.0,0.45835121]
[1751240663389,0.64310982,108380.0,108370.0,0.09755121]
[1751240665095,0.64310982,108380.0,108370.0,0.06090658]
[1751240665294,0.64310982,108380.0,108370.0,0.09755121]
[1751240665894,0.64310982,108380.0,108370.0,0.06090658]
[1751240666095,0.64310982,108380.0,108370.0,0.02950658]
[1751240666601,0.2382936,108380.0,108370.0,0.02950658]
[1751240666800,0.64310982,108380.0,108370.0,0.02950658]
[1751240669105,0.64510982,108380.0,108370.0,0.02950658]
[1751240669308,0.64810982,108380.0,108370.0,0.02850658]
[1751240669907,0.78326982,108380.0,108370.0,0.02850658]
[1751240670797,0.3784536,108380.0,108370.0,0.02850658]
[1751240671001,0.78326982,108380.0,108370.0,0.06070658]
[1751240671300,0.64810982,108380.0,108370.0,0.09735121]
[1751240671505,0.64810982,108380.0,108370.0,0.33095932]
[1751240672205,0.64810982,108380.0,108370.0,0.36225932]
[1751240672706,0.64810982,108380.0,108370.0,0.15985121]